lending/lending_fUSD_20250425
["ID","MTS","AMOUNT","RATE_DAILY","PERIOD"]
[358908900,1745543443758,-500.0,0.00042192,2]
[358908901,1745543443767,-151.0,0.00042195,14]
[358908902,1745543443776,-151.0,0.00042195,14]
[358908903,1745543443786,-151.0,0.00042195,14]
[358908904,1745543443795,-204.54628397,0.00042195,14]
[358908906,1745543443805,-1701.7,0.000422,2]
[358908908,1745543443814,-164.99,0.00042218,2]
[358908909,1745543443824,-150.0,0.00042219,30]
[358908910,1745543443834,-225.06649,0.00042288,30]
[358908911,1745543443844,-280.49717072,0.00042297,16]
[358908912,1745543443857,-10000.0,0.000423,120]
[358908913,1745543443866,-151.0,0.000423,14]
[358908914,1745543443875,-201.85,0.0004233,2]
[358908915,1745543443885,-289.93,0.00042369,120]
[358908916,1745543443894,-150.5,0.00042379,120]
[358908917,1745543443903,-750.2216,0.00042384,7]
[358908918,1745543443914,-282.03,0.00042389,120]
[358908919,1745543443924,-150.5,0.00042389,120]
[358908921,1745543443936,-500.0,0.00042399,30]
[358908922,1745543443946,-666.0,0.00042399,30]
[358908924,1745543443956,-204.828574,0.00042399,14]
[358908927,1745543443966,-151.0,0.00042399,14]
[358908929,1745543443976,-204.828574,0.00042399,14]
[358908931,1745543443985,-151.0,0.00042399,14]
[358908932,1745543443995,-169.999793,0.00042399,14]
[358908934,1745543444004,-151.0,0.00042399,14]
[358908936,1745543444014,-169.999793,0.00042399,14]
[358908938,1745543444023,-500.0,0.00042399,30]
[358908939,1745543444032,-666.0,0.00042399,30]
[358908941,1745543444043,-603.32234867,0.00042399,30]
[358908942,1745543444052,-500.0,0.00042399,30]
[358908943,1745543444062,-666.0,0.00042399,30]
[358908944,1745543444071,-500.0,0.00042399,30]
[358908945,1745543444081,-500.0,0.00042399,30]
[358908947,1745543444091,-10000.0,0.000424,120]
[358908949,1745543444100,-35167.73819392,0.000424,30]
[358908950,1745543444110,-4434.64,0.000424,60]
[358908951,1745543444119,-193.396767,0.000424,14]
[358908952,1745543444129,-151.0,0.000424,14]
[358908953,1745543444138,-151.0,0.000424,14]
[358908954,1745543444148,-151.0,0.000424,14]
[358908955,1745543444157,-151.0,0.000424,14]
[358908956,1745543444166,-151.0,0.000424,14]
[358908957,1745543444176,-184.094366,0.000424,14]
[358908958,1745543444191,-184.094366,0.000424,14]
[358908959,1745543444200,-151.0,0.000424,14]
[358908960,1745543444210,-151.0,0.000424,14]
[358908961,1745543444222,-332.889698,0.000424,14]
[358908962,1745543444232,-332.889698,0.000424,14]
[358908963,1745543444243,-640.229666,0.000424,14]
[358908964,1745543444253,-640.229666,0.000424,14]
[358908965,1745543444263,-151.0,0.000424,14]
[358908966,1745543444273,-151.0,0.000424,14]
[358908967,1745543444282,-211.473619,0.000424,2]
[358908968,1745543444292,-211.473619,0.000424,2]
[358908969,1745543444302,-151.0,0.000424,14]
[358908970,1745543444313,-245.348298,0.000424,14]
[358908971,1745543444322,-238.27403,0.000424,14]
[358908972,1745543444332,-151.0,0.000424,14]
[358908973,1745543444341,-151.0,0.000424,14]
[358908974,1745543444351,-165.141372,0.000424,14]
[358908975,1745543444361,-3587.17,0.00042465,120]
[358908976,1745543444370,-192.18282527,0.00042466,30]
[358908977,1745543444380,-1000.0,0.00042466,14]
[358908978,1745543444389,-500.0,0.00042466,2]
[358908979,1745543444399,-500.0,0.00042466,2]
[358908980,1745543444409,-151.0,0.00042466,14]
[358908981,1745543444419,-258.59520669,0.00042469,10]
[358908982,1745543444429,-225.06649,0.00042488,30]
[358908983,1745543444442,-1228.324,0.00042499,64]
[358908984,1745543444451,-2713.58,0.000425,14]
[358908985,1745543444462,-204.828574,0.000425,14]
[358908986,1745543444471,-151.0,0.000425,14]
[358908987,1745543444480,-204.828574,0.000425,14]
[358908988,1745543444490,-151.0,0.000425,14]
[358908989,1745543444500,-169.999793,0.000425,14]
[358908990,1745543444510,-151.0,0.000425,14]
[358908991,1745543444519,-169.999793,0.000425,14]
[358908992,1745543444528,-15000.0,0.000425,120]
[358908993,1745543444538,-152.0,0.00042516,15]
[358908994,1745543444548,-264.91608,0.00042516,10]
[358908995,1745543444557,-700.0,0.00042524,16]
[358908996,1745543444566,-700.0,0.00042524,16]
[358908997,1745543444576,-700.0,0.00042524,16]
[358908998,1745543444585,-700.0,0.00042524,16]
[358908999,1745543444595,-700.0,0.00042524,16]
[358909000,1745543444604,-264.91608,0.00042531,10]
[358909001,1745543444614,-258.59520669,0.00042539,10]
[358909002,1745543444623,-500.0,0.00042541,30]
[358909003,1745543444632,-500.0,0.00042541,30]
[358909004,1745543444642,-500.0,0.00042541,30]
[358909005,1745543444651,-500.0,0.00042541,30]
[358909006,1745543444661,-160.445241,0.00042542,14]
[358909007,1745543444670,-151.0,0.00042542,14]
[358909008,1745543444682,-151.0,0.00042542,14]
[358909009,1745543444692,-30141.524986,0.00042542,2]
[358909010,1745543444701,-151.0,0.00042542,14]
[358909011,1745543444711,-279.078652,0.00042542,14]
[358909012,1745543444721,-151.0,0.00042542,14]
[358909013,1745543444731,-184.094366,0.00042542,14]
[358909014,1745543444740,-184.094366,0.00042542,14]
[358909015,1745543444750,-151.0,0.00042542,14]
[358909016,1745543444759,-151.0,0.00042542,14]
[358909017,1745543444769,-332.889698,0.00042542,14]
[358909018,1745543444778,-332.889698,0.00042542,14]
[358909019,1745543444788,-640.229666,0.00042542,14]
[358909020,1745543444797,-640.229666,0.00042542,14]
[358909021,1745543444807,-151.0,0.00042542,14]
[358909022,1745543444817,-151.0,0.00042542,14]
[358909023,1745543444827,-211.473619,0.00042542,2]
[358909024,1745543444837,-211.473619,0.00042542,2]
[358909025,1745543444849,-151.0,0.00042542,14]
[358909026,1745543444859,-151.0,0.00042542,14]
[358909027,1745543444868,-151.0,0.00042542,14]
[358909028,1745543444877,-574.45597102,0.00042544,10]
[358909029,1745543444886,-574.45597102,0.00042547,10]
[358909030,1745543444896,-264.91608,0.00042552,10]
[358909031,1745543444905,-1568.91893449,0.00042552,10]
[358909032,1745543444915,-3639.3641358,0.00042552,2]
[358909033,1745543444924,-449.5027683,0.00042552,2]
[358909034,1745543444937,-607.66071158,0.0004257,30]
[358909035,1745543444946,-500.0,0.0004257,30]
[358909036,1745543444955,-500.0,0.0004257,30]
[358909037,1745543444964,-500.0,0.0004257,30]
[358909038,1745543444975,-114083.2740853,0.00042571,2]
[358909039,1745543444984,-10092.2184975,0.00042571,2]
[358909040,1745543444993,-280.109296,0.00042571,14]
[358909041,1745543445003,-151.0,0.00042571,14]
[358909042,1745543445012,-1000.0,0.00042571,28]
[358909043,1745543445022,-1000.0,0.00042571,28]
[358909044,1745543445031,-1000.0,0.00042571,28]
[358909045,1745543445041,-1000.0,0.00042571,28]
[358909046,1745543445051,-1000.0,0.00042571,28]
[358909047,1745543445060,-151.0,0.00042571,14]
[358909048,1745543445070,-184.094366,0.00042571,14]
[358909049,1745543445079,-184.094366,0.00042571,14]
[358909050,1745543445088,-154.014116,0.00042571,14]
[358909051,1745543445098,-151.0,0.00042571,14]
[358909052,1745543445107,-204.828574,0.00042571,14]
[358909053,1745543445116,-256.915314,0.00042571,14]
[358909054,1745543445126,-204.828574,0.00042571,14]
[358909055,1745543445136,-151.0,0.00042571,14]
[358909056,1745543445146,-169.999793,0.00042571,14]
[358909057,1745543445156,-151.0,0.00042571,14]
[358909058,1745543445166,-169.999793,0.00042571,14]
[358909059,1745543445176,-332.889698,0.00042571,14]
[358909060,1745543445187,-332.889698,0.00042571,14]
[358909061,1745543445196,-640.229666,0.00042571,14]
[358909062,1745543445206,-640.229666,0.00042571,14]
[358909063,1745543445216,-151.0,0.00042571,14]
[358909064,1745543445226,-151.0,0.00042571,14]
[358909065,1745543445236,-211.473619,0.00042571,2]
[358909066,1745543445245,-211.473619,0.00042571,2]
[358909067,1745543445255,-151.0,0.00042571,14]
[358909068,1745543445264,-151.0,0.00042571,14]
[358909069,1745543445273,-151.0,0.00042571,14]
[358909070,1745543445283,-2557.03426823,0.00042578,10]
[358909071,1745543445292,-1268.05687737,0.00042587,10]
[358909072,1745543445302,-1957.27,0.000426,2]
[358909073,1745543445313,-409.89,0.000426,2]
[358909074,1745543445322,-2102.36,0.000426,2]
[358909075,1745543445332,-1701.7,0.000426,2]
[358909076,1745543445342,-1000.0,0.00042603,14]
[358909077,1745543445351,-258.59520669,0.00042605,10]
[358909078,1745543445360,-264.91608,0.0004261,10]
[358909079,1745543445371,-574.45597102,0.0004261,10]
[358909080,1745543445390,-503.21907364,0.00042615,10]
[358909081,1745543445404,-264.91608,0.00042621,10]
[358909082,1745543445413,-1414.52145587,0.00042625,10]
[358909083,1745543445423,-1268.05687737,0.00042631,10]
[358909084,1745543445435,-1414.52145587,0.00042633,10]
[358909085,1745543445444,-258.59520669,0.00042634,10]
[358909086,1745543445454,-14799.41534675,0.0004264,10]
[358909087,1745543445463,-211.0,0.0004264,30]
[358909088,1745543445473,-258.59520669,0.00042647,10]
[358909089,1745543445484,-1568.91893449,0.00042654,10]
[358909090,1745543445493,-14799.41534675,0.00042656,10]
[358909091,1745543445503,-1414.52145587,0.00042663,10]
[358909092,1745543445513,-14799.41534675,0.00042668,10]
[358909093,1745543445523,-400.0,0.0004267,3]
[358909094,1745543445533,-150.0,0.00042678,30]
[358909095,1745543445543,-225.06649,0.00042688,30]
[358909096,1745543445553,-1268.05687737,0.00042692,10]
[358909097,1745543445563,-1568.91893449,0.00042699,10]
[358909098,1745543445572,-1568.91893449,0.00042706,10]
[358909099,1745543445582,-1268.05687737,0.00042709,10]
[358909100,1745543445592,-264.91608,0.00042715,10]
[358909101,1745543445602,-258.59520669,0.0004272,10]
[358909102,1745543445611,-503.21907364,0.0004272,10]
[358909103,1745543445621,-150.0,0.00042722,2]
[358909104,1745543445631,-1414.52145587,0.00042729,10]
[358909105,1745543445641,-1414.52145587,0.00042734,10]
[358909106,1745543445651,-150.22,0.0004274,2]
[358909107,1745543445661,-1000.0,0.0004274,14]
[358909108,1745543445670,-575.47737139,0.0004274,2]
[358909109,1745543445681,-500.0,0.0004274,2]
[358909110,1745543445691,-2557.03426823,0.00042741,10]
[358909111,1745543445701,-2557.03426823,0.00042742,10]
[358909112,1745543445711,-574.45597102,0.00042747,10]
[358909113,1745543445720,-1568.91893449,0.00042747,10]
[358909114,1745543445729,-2557.03426823,0.00042751,10]
[358909115,1745543445739,-2557.03426823,0.00042754,10]
[358909116,1745543445748,-503.21907364,0.00042755,10]
[358909117,1745543445758,-14799.41534675,0.00042763,10]
[358909118,1745543445767,-150.0,0.00042775,2]
[358909119,1745543445777,-258.59520669,0.00042775,10]
[358909120,1745543445787,-2557.03426823,0.00042776,10]
[358909121,1745543445796,-264.91608,0.00042776,10]
[358909122,1745543445806,-14799.41534675,0.0004278,10]
[358909123,1745543445815,-503.21907364,0.00042793,10]
[358909124,1745543445826,-574.45597102,0.00042799,10]
[358909125,1745543445842,-350.06,0.00042869,2]
[358909126,1745543445854,-1000.0,0.00042877,14]
[358909127,1745543445864,-1000.0,0.00042877,14]
[358909128,1745543445873,-225.06649,0.00042888,30]
[358909129,1745543445885,-151.0,0.00042888,14]
[358909130,1745543445896,-4434.64,0.000429,60]
[358909131,1745543445906,-152.0,0.00042921,16]
[358909132,1745543445915,-2200.36277769,0.00042928,15]
[358909133,1745543445928,-1764.59845775,0.00042928,15]
[358909134,1745543445939,-151.0,0.00042928,14]
[358909135,1745543445949,-211.473619,0.00042928,2]
[358909136,1745543445959,-211.473619,0.00042928,2]
[358909137,1745543445969,-151.0,0.00042928,14]
[358909138,1745543445979,-151.0,0.00042928,14]
[358909139,1745543445988,-151.0,0.00042928,14]
[358909140,1745543445999,-190.4085116,0.00042959,2]
[358909141,1745543446008,-400.0,0.0004297,3]
[358909142,1745543446018,-400.0,0.0004297,3]
[358909143,1745543446028,-400.0,0.0004297,3]
[358909144,1745543446039,-151.0,0.0004297,14]
[358909145,1745543446049,-332.889698,0.0004297,14]
[358909146,1745543446059,-332.889698,0.0004297,14]
[358909147,1745543446069,-640.229666,0.0004297,14]
[358909148,1745543446078,-640.229666,0.0004297,14]
[358909149,1745543446088,-265.484195,0.0004297,14]
[358909150,1745543446098,-150.0,0.00042971,2]
[358909151,1745543446108,-500.0,0.00042992,30]
[358909153,1745543446117,-500.0,0.00042992,30]
[358909154,1745543446127,-500.0,0.00042992,30]
[358909155,1745543446137,-204.828574,0.00042992,14]
[358909156,1745543446147,-204.828574,0.00042992,14]
[358909157,1745543446157,-151.0,0.00042992,14]
[358909158,1745543446167,-169.999793,0.00042992,14]
[358909159,1745543446176,-300.637816,0.00042992,14]
[358909160,1745543446186,-169.999793,0.00042992,14]
[358909161,1745543446196,-42249.00104485,0.00042993,2]
[358909162,1745543446206,-151.0,0.00042993,14]
[358909163,1745543446216,-151.0,0.00042993,14]
[358909164,1745543446225,-184.094366,0.00042993,14]
[358909166,1745543446235,-184.094366,0.00042993,14]
[358909168,1745543446245,-200.0,0.00043,70]
[358909170,1745543446255,-200.0,0.00043,70]
[358909172,1745543446265,-1800.0,0.00043,44]
[358909175,1745543446281,-3073.2045261,0.00043,120]
[358909177,1745543446291,-151.0,0.00043,14]
[358909179,1745543446301,-1000.0,0.00043,2]
[358909181,1745543446311,-527.0,0.00043,90]
[358909183,1745543446321,-176.44,0.00043,33]
[358909185,1745543446332,-176.44,0.00043,33]
[358909187,1745543446341,-176.44,0.00043,33]
[358909189,1745543446351,-176.44,0.00043,33]
[358909191,1745543446361,-176.44,0.00043,33]
[358909193,1745543446371,-176.44,0.00043,33]
[358909195,1745543446381,-176.44,0.00043,33]
[358909197,1745543446391,-176.44,0.00043,33]
[358909199,1745543446401,-176.44,0.00043,33]
[358909201,1745543446411,-176.44,0.00043,33]
[358909203,1745543446420,-176.44,0.00043,33]
[358909205,1745543446431,-176.44,0.00043,33]
[358909207,1745543446442,-176.44,0.00043,33]
[358909209,1745543446452,-176.44,0.00043,33]
[358909210,1745543446462,-176.44,0.00043,33]
[358909211,1745543446472,-176.44,0.00043,33]
[358909212,1745543446482,-176.44,0.00043,33]
[358909214,1745543446492,-176.44,0.00043,33]
[358909216,1745543446502,-176.44,0.00043,33]
[358909218,1745543446512,-176.44,0.00043,33]
[358909220,1745543446522,-176.44,0.00043,33]
[358909222,1745543446533,-176.44,0.00043,33]
[358909224,1745543446543,-176.44,0.00043,33]
[358909226,1745543446552,-176.44,0.00043,33]
[358909228,1745543446562,-512.31,0.00043,120]
[358909230,1745543446572,-527.0,0.00043014,90]
[358909232,1745543446581,-1000.0,0.00043014,14]
[358909234,1745543446591,-1000.0,0.00043014,14]
[358909236,1745543446600,-718.0,0.00043014,14]
[358909239,1745543446610,-500.0,0.00043014,2]
[358909241,1745543446621,-150.0,0.00043041,2]
[358909243,1745543446632,-210.370276,0.00043041,14]
[358909245,1745543446641,-211.473619,0.00043041,2]
[358909247,1745543446651,-211.473617,0.00043041,2]
[358909249,1745543446661,-151.0,0.00043041,14]
[358909251,1745543446672,-151.0,0.00043041,14]
[358909253,1745543446682,-1139.77643799,0.00043072,17]
[358909255,1745543446693,-150.0,0.00043079,2]
[358909257,1745543446703,-225.06649,0.00043088,30]
[358909259,1745543446713,-270.160494,0.00043088,14]
[358909261,1745543446728,-150.0,0.00043137,30]
[358909264,1745543446737,-150.0,0.00043144,2]
[358909265,1745543446747,-176.0,0.00043151,90]
[358909268,1745543446757,-150.0,0.00043179,2]
[358909270,1745543446767,-150.0,0.00043206,2]
[358909272,1745543446777,-150.0,0.00043283,2]
[358909274,1745543446788,-527.0,0.00043288,90]
[358909276,1745543446797,-500.0,0.00043288,2]
[358909278,1745543446807,-225.06649,0.00043288,30]
[358909280,1745543446817,-248.71531821,0.00043289,2]
[358909282,1745543446826,-332.889698,0.00043289,14]
[358909284,1745543446840,-332.889694,0.00043289,14]
[358909286,1745543446850,-640.229666,0.00043289,14]
[358909288,1745543446859,-640.229656,0.00043289,14]
[358909290,1745543446870,-201.85,0.00043289,2]
[358909292,1745543446881,-152.0,0.00043326,17]
[358909294,1745543446890,-151.0,0.00043348,14]
[358909296,1745543446900,-400.0,0.0004337,3]
[358909298,1745543446911,-300.0,0.0004337,3]
[358909300,1745543446922,-4434.64,0.000434,60]
[358909302,1745543446935,-204.828574,0.000434,14]
[358909304,1745543446945,-204.828574,0.000434,14]
[358909306,1745543446955,-151.0,0.000434,14]
[358909309,1745543446965,-169.999793,0.000434,14]
[358909311,1745543446975,-169.999793,0.000434,14]
[358909313,1745543446985,-2009.30261792,0.0004347,30]
[358909315,1745543446996,-225.06649,0.00043488,30]
[358909318,1745543447009,-500.0,0.00043488,30]
[358909319,1745543447020,-527.0,0.00043562,90]
[358909320,1745543447031,-500.0,0.00043562,2]
[358909321,1745543447043,-150.0,0.00043596,30]
[358909323,1745543447054,-150.0,0.00043683,2]
[358909325,1745543447066,-225.06649,0.00043688,30]
[358909328,1745543447077,-1957.27,0.000437,2]
[358909330,1745543447089,-409.89,0.000437,2]
[358909332,1745543447100,-2102.36,0.000437,2]
[358909334,1745543447112,-1701.7,0.000437,2]
[358909337,1745543447123,-152.0,0.00043732,18]
[358909339,1745543447135,-150.0,0.00043738,2]
[358909341,1745543447146,-150.0,0.0004374,120]
[358909343,1745543447158,-150.0,0.00043797,2]
[358909347,1745543447180,-150.0,0.00043807,2]
[358909349,1745543447194,-522.08057518,0.0004383,30]
[358909351,1745543447205,-3587.17,0.00043835,120]
[358909354,1745543447217,-527.0,0.00043836,90]
[358909356,1745543447228,-150.22,0.00043836,2]
[358909358,1745543447240,-500.0,0.00043836,2]
[358909360,1745543447252,-150.0,0.00043875,2]
[358909363,1745543447264,-4434.64,0.000439,60]
[358909365,1745543447276,-150.0,0.00043931,2]
[358909366,1745543447288,-150.0,0.0004396,2]
[358909368,1745543447299,-164.99,0.0004396,2]
[358909369,1745543447311,-211.0,0.0004398,30]
[358909371,1745543447322,-682.28213089,0.00044,2]
[358909373,1745543447333,-200.0,0.00044,73]
[358909375,1745543447345,-200.0,0.00044,73]
[358909376,1745543447356,-1800.0,0.00044,45]
[358909378,1745543447367,-794.81790064,0.00044002,30]
[358909379,1745543447378,-150.0,0.00044019,120]
[358909381,1745543447389,-150.0,0.00044055,30]
[358909383,1745543447400,-150.0,0.00044077,2]
[358909384,1745543447411,-225.06649,0.00044088,30]
[358909386,1745543447422,-500.0,0.0004411,2]
[358909388,1745543447433,-150.0,0.00044119,2]
[358909389,1745543447446,-152.0,0.00044137,19]
[358909391,1745543447457,-1139.77643799,0.00044176,18]
[358909393,1745543447468,-150.0,0.00044177,2]
[358909394,1745543447480,-150.04233,0.00044198,120]
[358909396,1745543447492,-501.86,0.000442,3]
[358909398,1745543447504,-176.44,0.000442,36]
[358909400,1745543447515,-176.44,0.000442,36]
[358909401,1745543447526,-176.44,0.000442,36]
[358909403,1745543447537,-176.44,0.000442,36]
[358909404,1745543447548,-176.44,0.000442,36]
[358909406,1745543447560,-176.44,0.000442,36]
[358909408,1745543447571,-176.44,0.000442,36]
[358909410,1745543447582,-176.44,0.000442,36]
[358909412,1745543447598,-176.44,0.000442,36]
[358909413,1745543447609,-176.44,0.000442,36]
[358909415,1745543447620,-176.44,0.000442,36]
[358909417,1745543447632,-176.44,0.000442,36]
[358909419,1745543447644,-176.44,0.000442,36]
[358909420,1745543447655,-176.44,0.000442,36]
[358909422,1745543447667,-176.44,0.000442,36]
[358909424,1745543447679,-176.44,0.000442,36]
[358909425,1745543447691,-176.44,0.000442,36]
[358909426,1745543447702,-176.44,0.000442,36]
[358909427,1745543447713,-176.44,0.000442,36]
[358909428,1745543447724,-176.44,0.000442,36]
[358909430,1745543447736,-176.44,0.000442,36]
[358909432,1745543447747,-176.44,0.000442,36]
[358909435,1745543447759,-176.44,0.000442,36]
[358909437,1745543447770,-176.44,0.000442,36]
[358909439,1745543447781,-150.0,0.00044227,2]
[358909441,1745543447792,-923.34831392,0.00044243,30]
[358909443,1745543447803,-201.85,0.00044248,2]
[358909445,1745543447815,-150.0,0.0004426,2]
[358909448,1745543447826,-225.06649,0.00044288,30]
[358909450,1745543447838,-500.0,0.00044384,2]
[358909452,1745543447853,-3600.0,0.000444,2]
[358909454,1745543447864,-277.678543,0.00044427,14]
[358909457,1745543447876,-184.094366,0.00044427,14]
[358909459,1745543447888,-184.094366,0.00044427,14]
[358909461,1745543447899,-150.0,0.00044431,120]
[358909463,1745543447910,-150.0,0.00044433,120]
[358909465,1745543447922,-151.0,0.00044464,14]
[358909467,1745543447933,-150.0,0.00044484,2]
[358909469,1745543447945,-225.06649,0.00044488,30]
[358909471,1745543447959,-150.042509,0.00044498,120]
[358909474,1745543447971,-150.0,0.00044502,120]
[358909476,1745543447982,-150.0,0.00044514,30]
[358909478,1745543447994,-152.0,0.00044542,20]
[358909480,1745543448006,-150.0,0.00044563,2]
[358909482,1745543448017,-150.0,0.00044634,2]
[358909484,1745543448035,-150.0,0.00044639,2]
[358909485,1745543448050,-500.0,0.00044658,2]
[358909486,1745543448062,-257.91778498,0.00044658,2]
[358909487,1745543448074,-225.06649,0.00044688,30]
[358909488,1745543448087,-150.0,0.00044691,2]
[358909489,1745543448099,-150.0,0.00044704,2]
[358909490,1745543448112,-150.0,0.00044737,2]
[358909491,1745543448124,-150.0,0.00044794,2]
[358909492,1745543448136,-4434.65,0.000448,60]
[358909493,1745543448148,-151.0,0.000448,14]
[358909494,1745543448160,-2000.0,0.00044831,8]
[358909495,1745543448171,-150.0,0.00044847,2]
[358909496,1745543448183,-676.14,0.00044854,120]
[358909497,1745543448195,-1000.0,0.00044871,2]
[358909498,1745543448208,-527.0,0.00044877,90]
[358909499,1745543448220,-225.06649,0.00044888,30]
[358909500,1745543448231,-928.02863995,0.000449,30]
[358909501,1745543448243,-2713.58,0.000449,14]
[358909502,1745543448254,-2973.07472994,0.00044906,17]
[358909503,1745543448265,-150.0,0.00044911,120]
[358909504,1745543448277,-150.22,0.00044932,2]
[358909505,1745543448289,-500.0,0.00044932,2]
[358909506,1745543448299,-150.0,0.00044943,2]
[358909507,1745543448311,-152.0,0.00044947,21]
[358909508,1745543448323,-150.0,0.00044957,2]
[358909509,1745543448334,-150.0,0.00044973,30]
[358909510,1745543448345,-150.0,0.00044988,2]
[358909511,1745543448356,-500.0,0.00044999,30]
[358909512,1745543448368,-500.0,0.00044999,30]
[358909513,1745543448379,-500.0,0.00044999,30]
[358909514,1745543448391,-681.0,0.00045,30]
[358909515,1745543448402,-200.0,0.00045,76]
[358909516,1745543448413,-200.0,0.00045,76]
[358909517,1745543448424,-20057.0,0.00045,3]
[358909518,1745543448435,-500.0,0.00045,15]
[358909519,1745543448447,-500.0,0.00045,15]
[358909520,1745543448458,-259.17004113,0.00045,120]
[358909521,1745543448470,-30207.97119872,0.00045,60]
[358909522,1745543448482,-964.0071434,0.00045,2]
[358909523,1745543448493,-1290.4589141,0.00045,120]
[358909524,1745543448504,-1800.0,0.00045,46]
[358909525,1745543448517,-16992.0,0.00045,120]
[358909526,1745543448529,-9980.0,0.00045,90]
[358909527,1745543448541,-151.0,0.00045,14]
[358909528,1745543448552,-151.0,0.00045,14]
[358909529,1745543448564,-184.094366,0.00045,14]
[358909530,1745543448576,-184.094362,0.00045,14]
[358909531,1745543448587,-160.4,0.00045,85]
[358909533,1745543448599,-204.828574,0.00045,14]
[358909535,1745543448611,-204.828578,0.00045,14]
[358909537,1745543448623,-151.0,0.00045,14]
[358909539,1745543448635,-169.999793,0.00045,14]
[358909542,1745543448647,-169.999788,0.00045,14]
[358909544,1745543448658,-432.99,0.00045,120]
[358909546,1745543448670,-150.0,0.00045023,2]
[358909548,1745543448681,-150.0,0.00045087,120]
[358909550,1745543448696,-225.06649,0.00045088,30]
[358909552,1745543448708,-500.0,0.00045099,30]
[358909554,1745543448719,-500.0,0.00045099,30]
[358909556,1745543448732,-50000.0,0.000451,10]
[358909558,1745543448744,-350.06,0.00045133,2]
[358909561,1745543448755,-150.0,0.00045163,2]
[358909563,1745543448768,-2713.58,0.000452,14]
[358909565,1745543448780,-188.64918891,0.000452,120]
[358909567,1745543448791,-3587.17,0.00045205,120]
[358909569,1745543448803,-151.0,0.00045205,14]
[358909571,1745543448814,-151.0,0.00045205,14]
[358909572,1745543448826,-294.25559,0.00045205,14]
[358909573,1745543448840,-482.99593681,0.00045206,2]
[358909574,1745543448855,-201.85,0.00045207,2]
[358909575,1745543448867,-150.0,0.00045221,120]
[358909576,1745543448879,-150.0,0.00045242,2]
[358909577,1745543448891,-254.21351882,0.0004526,7]
[358909578,1745543448902,-1139.77643799,0.00045279,19]
[358909579,1745543448914,-150.0,0.00045286,2]
[358909580,1745543448926,-225.06649,0.00045288,30]
[358909581,1745543448941,-500.0,0.00045299,30]
[358909582,1745543448953,-285372.45322331,0.000453,5]
[358909583,1745543448965,-176.44,0.000453,39]
[358909584,1745543448976,-176.44,0.000453,39]
[358909585,1745543448987,-176.44,0.000453,39]
[358909587,1745543448998,-176.44,0.000453,39]
[358909588,1745543449010,-176.44,0.000453,39]
[358909589,1745543449022,-176.44,0.000453,39]
[358909590,1745543449034,-176.44,0.000453,39]
[358909591,1745543449045,-176.44,0.000453,39]
[358909592,1745543449057,-176.44,0.000453,39]
[358909593,1745543449068,-176.44,0.000453,39]